Cogmind - Beta 15 @@@ ROGUE MODE // 2025.06.27 @ 20:27:52 Player: StaticNoob Result: Destroyed by BO-RWK(R) with Subdweller Laser Performance ------------- Evolutions (0) 0 Regions Visited (2) 400 Robots Destroyed (20) 100 Value Destroyed (485) 485 Prototype IDs (2) 40 Alien Tech Used (0) 0 Bonus (-41) -41 TOTAL SCORE: 984 Bonus ------- Friendly Fire -41 Cogmind --------- Core Integrity 0/250 Matter 213/300 Energy 125/125 System Corruption 3% Temperature Cool (6) Movement Rolling (130) Ox2 Location -10/Subcaves Parts ------- > --- POWER (1) -------- Light Ion Engine > --- PROPULSION (2) --- Light Treads Compact Wheel > --- UTILITY (2) ------ High-capacity Storage Unit > --- WEAPON (2) ------- (None) > --- INVENTORY (20) --- Light Ion Engine Light Treads Improved Heat Sink Improved Heat Sink Small Storage Unit Small Matter Pod (50) Sensor Array Signal Interpreter Improved Terrain Scanner Hacking Suite Hacking Suite Light Assault Rifle Peak State ------------ > --- POWER ------------ Ion Engine > --- PROPULSION ------- Light Treads Compact Wheel > --- UTILITY ---------- High-capacity Storage Unit Improved Terrain Scanner > --- WEAPON ----------- Beam Cannon Light Assault Rifle > --- INVENTORY -------- Light Ion Engine Light Ion Engine Light Treads Improved Heat Sink Improved Heat Sink Small Storage Unit Small Matter Pod Signal Interpreter Light Armor Plating Hacking Suite Hacking Suite Grenade Launcher [Rating: 11] Favorites ----------- Power Ion Engine Engine Ion Engine Propulsion Compact Wheel Treads Light Treads Wheel Compact Wheel Utility High-capacity Storage Unit Device Improved Terrain Scanner Storage High-capacity Storage Unit Protection Light Armor Plating Weapon Light Assault Rifle Energy Gun Small Laser Energy Cannon Beam Cannon Ballistic Gun Light Assault Rifle Launcher Grenade Launcher Build | -11 -10 -10 ------- Run | Yrd Mat Sub Slots Evolved . | . . . Power . | . . . Propulsion . | . . . Utility . | . . . Weapon . | . . . Parts Attached 14 | 7 4 3 Power 2 | 1 . 1 Engine 2 | 1 . 1 Core . | . . . Reactor . | . . . Propulsion 4 | 2 2 . Treads 1 | . 1 . Leg . | . . . Wheel 3 | 2 1 . Hover . | . . . Flight . | . . . Utility 4 | 2 1 1 Device 1 | 1 . . Storage 2 | 1 1 . Processor . | . . . Hackware . | . . . Protection 1 | . . 1 Artifact . | . . . Weapon 4 | 2 1 1 Energy Gun 1 | 1 . . Energy Cannon 1 | . 1 . Ballistic Gun 1 | 1 . . Ballistic Cannon . | . . . Launcher 1 | . . 1 Special Weapon . | . . . Impact Weapon . | . . . Slashing Weapon . | . . . Piercing Weapon . | . . . Special Melee Weapon . | . . . Unidentified Prototypes . | . . . Parts Lost 7 | . 3 4 Power 1 | . . 1 Propulsion 2 | . 2 . Utility 1 | . . 1 Weapon 3 | . 1 2 Highest Loss Streak 3 | . 2 3 To Critical Strikes . | . . . Average Backups 9 | 1 9 12 Power 1 | . 2 1 Propulsion 2 | 1 2 1 Utility 4 | . 4 9 Weapon 1 | . 1 1 Tool/Special . | . . . Unused Backups 9 | . . 9 Power 1 | . . 1 Propulsion 1 | . . 1 Utility 7 | . . 7 Weapon . | . . . Tool/Special . | . . . Average Slot Usage (%) 98 | . 98 95 Engine 13 | . 14 12 Treads 4 | . 4 14 Wheel 22 | . 22 14 Device 13 | . 14 4 Storage 14 | . 14 14 Energy Gun 8 | . 9 . Energy Cannon 5 | . 4 12 Ballistic Gun 13 | . 14 2 Peak Build Rating 11 | 9 11 11 Average Rating 9 | 5 9 9 On Entrance 6 | . 9 11 Naked Turns . | . . . Heaviest Build 52 | 13 50 52 Greatest Support 32 | 32 32 16 Greatest Overweight (x) 3 | . 3 3 Average Overweight (x) 1 | . 1 2 Largest Inventory Capacity 20 | 8 20 20 Average Capacity 18 | 7 19 20 Most Carried 13 | 5 13 13 Average Carried 9 | 1 9 12 Final Capacity 20 | 8 20 20 Final Carried 13 | 5 13 12 Class Distribution -------------------- 100% | Mutant Dominant Class ---------------- Mutant | -10/Materials Mutant | -10/Subcaves Resources | -11 -10 -10 ----------- Run | Yrd Mat Sub Matter Collected 431 | 247 184 . Remotely . | . . . Salvage Created 624 | 63 545 16 Parts 40 | 4 32 4 Haulers Intercepted . | . . . Recyclers Shooed . | . . . Parts Field Recycled . | . . . Retrieved Matter . | . . . Parts Self-Destructed 4 | . . 4 Prevented . | . . . Kills | -11 -10 -10 ------- Run | Yrd Mat Sub Combat Hostiles Destroyed 12 | . 10 2 Guns 9 | . 9 . Cannons 1 | . 1 . AOE 2 | . . 2 Classes Destroyed 7 | 1 4 2 Worker 1 | . 1 . Tunneler 3 | 3 . . Operator 2 | . 2 . Watcher 2 | . 2 . Swarmer 2 | . . 2 Grunt 10 | . 10 . Scientist 1 | . . 1 Best Kill Streak 3 | 3 2 2 Combat Bots Only 2 | . 2 2 Max Kills in Single Turn 2 | 2 1 1 Gunslinging . | . . . Exploded 1 | . . 1 Melee . | . . . Uniques/NPCs Destroyed . | . . . Combat | -11 -10 -10 -------- Run | Yrd Mat Sub Hostile Shots Fired 120 | . 48 72 Missed 35 | . 12 23 Hits 85 | . 36 49 Projectile 85 | . 36 49 AOE 4 | . . 4 Critical Strikes 1 | . 1 . Damage Taken 1046 | . 483 563 Core 264 | . 104 160 Absorbed by Shields . | . . . Regen/Repaired (Parts) 12 | . 12 . Core Remaining (%) 100 | 100 . . Volleys Fired 66 | 4 54 8 Largest 2 | 2 2 2 Hottest 90 | 60 80 90 Shots Fired 128 | 8 106 14 Gun 106 | 8 98 . Cannon 16 | . 8 8 Launcher 6 | . . 6 Special . | . . . Kinetic 58 | 4 54 . Thermal 64 | 4 52 8 Explosive 6 | . . 6 Electromagnetic . | . . . Robot Hit Streak 8 | 5 8 1 Robot Miss Streak 7 | 1 7 3 Penetration Max . | . . . Secondary Targets . | . . . Shots Hit Robots 72 | 5 66 1 Core Hits 40 | 4 34 2 Critical Kills . | . . . Critical Parts Destroyed 1 | . 1 . Critical Strikes 1 | . 1 . Destroy 1 | . 1 . Melee Attacks . | . . . Impact . | . . . Slashing . | . . . Piercing . | . . . Sneak Attacks . | . . . Combat Hostiles . | . . . Follow-up Attacks . | . . . Damage Inflicted 882 | 71 666 145 Guns 630 | 71 559 . Cannons 124 | . 107 17 Explosions 128 | . . 128 Melee . | . . . Ramming . | . . . Kinetic 309 | 35 274 . Thermal 445 | 36 392 17 Explosive 128 | . . 128 Electromagnetic . | . . . Impact . | . . . Slashing . | . . . Piercing . | . . . Highest Corruption 3 | . 3 3 Average Corruption 2 | . 2 3 Corruption Purged . | . . . Corruption Blocked . | . . . Effects 6 | . 4 2 Matter Fused 4 | . 2 2 Energy Discharges 2 | . 2 . Overload Shots . | . . . Overflow Damage 10 | . . 10 Projectiles . | . . . Explosions 10 | . . 10 Melee . | . . . Knockbacks . | . . . Impact . | . . . Kinetic . | . . . Secondary . | . . . Self-Inflicted Damage 8 | . . 8 Shots 1 | . . 1 Rammed . | . . . Targets Rammed . | . . . Kicked . | . . . Crushed . | . . . Highest Temperature 276 | 20 276 11 Average Temperature 54 | 15 58 5 Received Heat Transfer 507 | . 285 222 Effects 3 | . 3 . Interference 3 | . 3 . Siege Activations . | . . . Martial Activations . | . . . Shielding Activations . | . . . Robots Disrupted . | . . . Combat Hostiles . | . . . Robots Corrupted . | . . . Combat Hostiles . | . . . Parts Fried . | . . . Impact Corruptions . | . . . Robots Melted . | . . . Combat Hostiles . | . . . Parts Melted . | . . . Heat Transferred 984 | 75 872 37 Parts Sabotaged . | . . . Parts Stolen . | . . . Parts Stripped . | . . . Power Chain Reactions . | . . . Alert | -11 -10 -10 ------- Run | Yrd Mat Sub Maximum Alert Level . | . . . Low Security (%) 100 | 100 100 . Level 1 . | . . . Level 2 . | . . . Level 3 . | . . . Level 4 . | . . . Level 5 . | . . . High Security . | . . . Max Security . | . . . Peak Influence 190 | 15 190 . Initial 3 | . 3 . Average 74 | 1 79 . Influence Increases 567 | 15 437 115 Destroy 0b10 Robot/C 240 | . 200 40 Destroy 0b10 Robot/NC 40 | 15 25 . Destroy Leader 54 | . 54 . Successful Hack 23 | . 23 . Select Force Hacks 60 | . 60 . Lose Combat Pursuer 150 | . 75 75 Influence Decreases 455 | 10 312 133 Entered New Map 65 | . 2 63 Time Decay 320 | 10 280 30 Lost Part 70 | . 30 40 Squads Dispatched 5 | . 5 . Investigation 3 | . 3 . Extermination . | . . . Reinforcement 2 | . 2 . Assault . | . . . Garrison . | . . . Intercept . | . . . Searches Triggered . | . . . Construction Impeded . | . . . Haulers Reinforced . | . . . Active Scanning Responses . | . . . Cargo Convoy Interrupts . | . . . Stealth | -11 -10 -10 --------- Run | Yrd Mat Sub Distress Signals . | . . . Communications Jammed . | . . . Distress Signals . | . . . Times Spotted 30 | . 19 11 Peak Tracking Total 6 | . 4 6 Tactical Retreats 6 | . 4 2 Traps | -11 -10 -10 ------- Run | Yrd Mat Sub Traps Triggered 3 | . 3 . Indirectly . | . . . Trap Hack Attempts . | . . . Triggered . | . . . Disarmed . | . . . Reprogrammed . | . . . Reused . | . . . Traps Extracted . | . . . Installed . | . . . Triggered . | . . . Machines | -11 -10 -10 ---------- Run | Yrd Mat Sub Machines Disabled . | . . . Max in Single Turn . | . . . Machines Repaired . | . . . Machines Dismantled . | . . . Machines Sabotaged . | . . . Overloaded Fab Kills . | . . . Hacking | -11 -10 -10 --------- Run | Yrd Mat Sub Machines Accessed 8 | . 8 . Terminals 5 | . 5 . Fabricators . | . . . Repair Stations 1 | . 1 . Recycling Units 2 | . 2 . Scanalyzers . | . . . Garrison Access . | . . . Total Hacks 24 | . 24 . Successful 14 | . 14 . Failed 10 | . 10 . Catastrophic 1 | . 1 . Database Lockouts . | . . . Manual 17 | . 17 . Terminals 17 | . 17 . Fabricators . | . . . Repair Stations 2 | . 2 . Recycling Units 5 | . 5 . Scanalyzers . | . . . Garrison Access . | . . . Terminal Hacks 3 | . 3 . Robot Analysis 1 | . 1 . Prototype ID Bank 1 | . 1 . Branch Access Points 1 | . 1 . Fabricator Hacks . | . . . Repair Station Hacks 2 | . 2 . Scan Component 1 | . 1 . Repair 1 | . 1 . Recycling Unit Hacks 3 | . 3 . Report Inventory 2 | . 2 . Retrieve Matter 1 | . 1 . Scanalyzer . | . . . Garrison Access Hacks . | . . . Unauthorized Hacks 6 | . 6 . Terminals 4 | . 4 . Botnet 4 | . 4 . Fabricators . | . . . Repair Stations . | . . . Recycling Units 2 | . 2 . Tunnel 2 | . 2 . Scanalyzers . | . . . Garrison Access . | . . . Data Cores Recovered . | . . . Used . | . . . Hacking Detections 6 | . 6 . Full Trace Events 1 | . 1 . Feedback Events . | . . . Feedback Blocked . | . . . Robot Schematics Acquired . | . . . Robots Built . | . . . Authchips . | . . . Time . | . . . Total Robot Build Rating . | . . . Part Schematics Acquired . | . . . Parts Built . | . . . Authchips . | . . . Time . | . . . Total Part Build Rating . | . . . Parts Repaired 1 | . 1 . Time 26 | . 26 . Parts Recycled . | . . . Recycled Matter . | . . . Retrieved Matter . | . . . Retrieved Components . | . . . Parts Scanalyzed . | . . . Part Schematics Acquired . | . . . Parts Damaged . | . . . Bothacking | -11 -10 -10 ------------ Run | Yrd Mat Sub Used RIF Installer . | . . . Robots Hacked . | . . . Non-combat . | . . . Combat . | . . . Robot Hacks Applied . | . . . Relay Couplers Released . | . . . Fabnet Peak Effective % . | . . . Robots Rewired . | . . . Allies Hacked . | . . . Hacks Repelled . | . . . Allies | -11 -10 -10 -------- Run | Yrd Mat Sub Total Allies . | . . . Largest Group . | . . . Highest-Rated Group . | . . . Highest-Rated Ally . | . . . Total Orders . | . . . Ally Attacks . | . . . Total Damage . | . . . Kills . | . . . Allies Corrupted . | . . . Allies Melted . | . . . Intel | -11 -10 -10 ------- Run | Yrd Mat Sub Active Infowar (turns) 873 | 5 848 20 Terrain 873 | 5 848 20 Robot Analysis Total 1 | . 1 . Derelict Logs Recovered 1 | . . 1 Drone Launches . | . . . Drone Recoveries . | . . . Exploration | -11 -10 -10 ------------- Run | Yrd Mat Sub Turns Passed 1003 | 69 869 65 Spaces Moved 568 | 43 499 26 Core 1 | 1 . . Treads . | . . . Legs . | . . . Wheels 567 | 42 499 26 Hover . | . . . Flight . | . . . Fastest Speed 50 | 50 100 130 Average Speed 123 | 98 124 143 Slowest Speed 145 | 100 145 145 Overloaded Moves . | . . . Propulsion Burnouts . | . . . Robots Hopped . | . . . Potential Cave-ins . | . . . Cave-ins Triggered . | . . . Exploration Rate (%) 31 | 5 87 2 Regions Visited 2 Branch Regions 1 Pre-discovered Areas 2 | . 2 . Known Exits Taken . | . . . Unknown Exits Taken 2 | 1 1 . Scrap Searched . | . . . Spaces Dug 33 | . . 33 Terrain Destroyed 54 | . . 54 Melee . | . . . Projectile . | . . . AOE 54 | . . 54 Terrain Rammed . | . . . Walls Destroyed . | . . . Machines Disabled . | . . . Actions | -11 -10 -10 --------- Run | Yrd Mat Sub Total 748 | 58 651 39 Wait 86 | . 84 2 Move 566 | 42 498 26 Hop . | . . . Pick Up 15 | 5 10 . Fast Attach 8 | 7 1 . Attach 4 | . 3 1 Detach . | . . . Swap 3 | . 1 2 Drop . | . . . Fire 66 | 4 54 8 Melee . | . . . Ram . | . . . Kick . | . . . Crush . | . . . Escape Stasis . | . . . Rewire . | . . . Trap . | . . . Miscellaneous . | . . . Route ------- -11/Scrapyard -10/Materials (discovered 5 exits: [*Mat x3] / *Min / [*Sub]) -10/Subcaves (discovered 1 exit: [*Rec]) History --------- Turn | Location | Event 26 | -11/Scrapyard | Discovered new exit (range 15) 70 | -11/Scrapyard | Entered Materials 126 | -10/Materials | Discovered new exit (range 7) 206 | -10/Materials | Discovered new exit (range 9) 318 | -10/Materials | Build established: Mutant 345 | -10/Materials | Identified exit to Mines 365 | -10/Materials | Discovered new exit (range 3) 610 | -10/Materials | Repaired Com. Wheel 706 | -10/Materials | Discovered new exit (range 6) 926 | -10/Materials | Discovered new exit (range 10) 939 | -10/Materials | Entered Subcaves 940 | -10/Subcaves | Approached by a straggling Scientist 951 | -10/Subcaves | Learned Materials terminal intel 961 | -10/Subcaves | Core integrity fell below 50% 1000 | -10/Subcaves | Core integrity fell below 20% 1003 | -10/Subcaves | Discovered new exit (range 16) 1004 | -10/Subcaves | Destroyed by BO-RWK(R) with Subdweller Laser Last Messages --------------- 00951_ Acquired derelict log, extracted data. Data stored: Materials terminal intel. 00954_ System corrupted: Matter fused (-7). 00955_ Subatomizers dissect the Lgt. Ion Engine. 00955_ Destroyed Lgt. Ion Engine. 00955_ S-10 Pest destroyed. 00957_ The unstable cave ceiling collapses. 00960_ Flight Unit fries itself beyond repair. 00979_ Subatomizers dissect the Lgt. Ion Engine. 00993_ 66-5TK(R): "ARGHSUB!" 00994_ Subatomizers dissect the Lgt. Ion Engine, destroying it. 00997_ Beam Cannon destroyed. 00998_ The unstable cave ceiling collapses. 01000_ System corrupted: Matter fused (-8). 01001_ Grenade Launcher destroyed. 01001_ 66-5TK(R) destroyed. 01003_ EXIT=FOUND 01003_ Lgt. Armor Plating destroyed. 01004_ The unstable cave ceiling collapses. Map ----- +----------------------------------------------------+ | ?????????????????????????????????????????????????? | | ?????????????????????????????????????????????????? | | ?????????????????????????????????????????????????? | | ?????????????????????????????????????????????????? | | ?????????????????????????????????????????????????? | | ?????????????????????????????????????????????????? | | ?????????????????????????????????????????????????? | | ?????????????????????????????????????????????????? | | ?????????????????????????????????????????????????? | | ?????????????????????????????"???????????????????? | | ?????????????????????????????????????????????????? | | ?????????????????????????????????????????????????? | | ??????????????????????????###????????????????????? | | ??????????????????????????""###??????????????????? | | ?????????????????????????##"""???????????????????? | | ???????????????????????###"" #???????????????????? | | ???????????????????????# #; ##??????????????????? | | ??????????????????????## ###????????????????? | | ??????????????????????# ###???????? ?????? | | ??????????????#???????# & #??????????????? | | ??????????????????????# % #?????????#????? | | ??????????????????#?### & #??????????????? | | ????????????????????### #??????????????? | | ?????????????????#### #??????????????? | | ?????????????????# ### #??????????? | | ???????????""t % @ R #??????????? | | ??????????< # ##?????????? | | ???????????""t "##????????????? | | ???????????" # ;;####????????#????? | | ???????????" ##### # ;#;##????????????????? | | ????????????"" ??????###### ####?????????????????? | | ??????????????????????????###????????????????????? | | ????????????????????????????#????????????????????? | | ?????????????????????????????????????????????????? | | ?????????????????#???????????????????????????????? | | ????????????????????#????????????????????????????? | | ?????????????????????????????????????????????????? | | ???????????????????????#?????????????????????????? | | ???????????????????????????????#?????????????????? | | ?????????????????????????????????? ??????????????? | | ?????????????????????????????????????????????????? | | ?????????????????????????????????????????????????? | | ?????????????????????????????????????????????????? | | ?????????????????????????????????????????????????? | | ?????????????????????????????????????????????????? | | ?????????????????????????????????????????????????? | | ?????????????????????????????????????????????????? | | ?????????????????????????????????????????????????? | | ?????????????????????????????????????????????????? | | ?????????????????????????????????????????????????? | +----------------------------------------------------+ Best States ------------- Heat Dissipation 25 Energy Generation 10 Energy Capacity 250 Matter Stores 300 Matter Capacity 300 Sight Range 16 Terrain Scan Range 16 Terrain Scan Density 10 Armor Coverage 150 Evasion (%) 40 Recoil Reduction 1 Item Schematics ----------------- None Robot Schematics ------------------ None Fabricated ------------ Nothing Repaired ---------- Com. Wheel | 60% | -10/Materials Alien Tech Used ----------------- None Achievements -------------- None Challenges ------------ None Game ------ Seed MassQuantumCleaver Manual? 0 Play Time 00:09:16 Cumulative 62.2 hours Start 2025.06.27 @ 20:19:46 End 2025.06.27 @ 20:27:52 Sessions 1 Manual Loads 0 Difficulty Rogue Special Mode None Game No. 79 Rogue 79 Adventurer 0 Explorer 0 Win Type - Total 0 Types 0/0/0/0/0/0/0/0/0/0 Lore% 32 Gallery% 45 Achievement% 39 Wizard Run 0 Options --------- Layout 1 ASCII 0 Keyboard 0 Movement Numpad Keybinds 0 Fullscreen 1 Font 24/Smallcaps Map View 50x35 Zoom Use 0% Tactical HUD 1 Map Filters NONE Filters NONE Steam 1 RUN: 95d9d607-e058-4259-8e66-349ded895836